Cogmind - Beta 10.2 @@@ ROGUE MODE // 2021.09.22 @ 01:47:01 Player: Jezoensis Result: Destroyed by G-47 Trooper with Particle Gun Performance ------------- Evolutions (0) 0 Regions Visited (2) 400 Robots Destroyed (20) 100 Value Destroyed (374) 374 Prototype IDs (0) 0 Alien Tech Used (0) 0 Bonus (0) 0 TOTAL SCORE: 874 Bonus ------- None Cogmind --------- Core Integrity 0/250 Matter 234/300 Energy 125/125 System Corruption 0% Temperature Cool (9) Movement Treading (160) Location -10/Mines Parts ------- > --- POWER (1) -------- Light Ion Engine > --- PROPULSION (2) --- Light Treads Light Treads > --- UTILITY (2) ------ Large Storage Unit Improved Terrain Scanner > --- WEAPON (2) ------- Assault Rifle Assault Rifle > --- INVENTORY (10) --- Large Storage Unit High-capacity Storage Unit Improved Terrain Scanner Terrain Scan Processor Mining Laser Peak State ------------ > --- POWER ------------ Ion Engine > --- PROPULSION ------- Light Treads Light Treads > --- UTILITY ---------- Small Storage Unit Improved Terrain Scanner > --- WEAPON ----------- Medium Laser Assault Rifle > --- INVENTORY -------- Light Ion Engine [Rating: 8] Favorites ----------- Power Ion Engine Engine Ion Engine Propulsion Light Treads Treads Light Treads Utility Improved Terrain Scanner Device Improved Terrain Scanner Storage Large Storage Unit Weapon Assault Rifle Energy Gun Medium Laser Ballistic Gun Assault Rifle Special Weapon Mining Laser Build | -11 -10 -10 ------- Run | Scr Mat Min Slots Evolved . | . . . Power . | . . . Propulsion . | . . . Utility . | . . . Weapon . | . . . Parts Attached 25 | 8 11 6 Power 3 | 2 . 1 Engine 3 | 2 . 1 Core . | . . . Reactor . | . . . Propulsion 3 | 2 . 1 Treads 3 | 2 . 1 Leg . | . . . Wheel . | . . . Hover . | . . . Flight . | . . . Utility 4 | 2 2 . Device 1 | 1 . . Storage 3 | 1 2 . Processor . | . . . Hackware . | . . . Protection . | . . . Artifact . | . . . Weapon 15 | 2 9 4 Energy Gun 7 | 1 5 1 Energy Cannon . | . . . Ballistic Gun 3 | 1 . 2 Ballistic Cannon . | . . . Launcher . | . . . Special Weapon 5 | . 4 1 Impact Weapon . | . . . Slashing Weapon . | . . . Piercing Weapon . | . . . Special Melee Weapon . | . . . Unidentified Prototypes . | . . . Parts Lost 5 | . 1 4 Power 1 | . . 1 Propulsion 1 | . . 1 Utility . | . . . Weapon 3 | . 1 2 Highest Loss Streak 4 | . 1 4 Average Slot Usage (%) 99 | . 100 99 Engine 14 | . 14 14 Treads 28 | . 28 28 Device 14 | . 14 14 Storage 14 | . 14 14 Energy Gun 9 | . 11 5 Ballistic Gun 15 | . 14 18 Special Weapon 3 | . 2 4 Naked Turns . | . . . Heaviest Build 26 | 14 26 26 Greatest Support 40 | 40 40 40 Greatest Overweight (x) . | . . . Average Overweight (x) . | . . . Largest Inventory Capacity 10 | 6 10 10 Average Capacity 8 | 5 8 10 Most Carried 8 | 3 8 8 Average Carried 5 | 1 5 6 Final Capacity 10 | 6 10 10 Final Carried 8 | 3 8 5 Class Distribution -------------------- 100% | Mutant Dominant Class ---------------- Mutant | -10/Materials Mutant | -10/Mines Resources | -11 -10 -10 ----------- Run | Scr Mat Min Matter Collected 608 | 307 153 148 Remotely . | . . . Salvage Created 748 | 111 354 283 Parts 47 | 13 22 12 Haulers Intercepted 1 | . 1 . Recyclers Shooed 1 | . . 1 Parts Field Recycled . | . . . Retrieved Matter . | . . . Parts Self-Destructed . | . . . Prevented . | . . . Kills | -11 -10 -10 ------- Run | Scr Mat Min Combat Hostiles Destroyed 14 | . 8 6 Guns 14 | . 8 6 Classes Destroyed 8 | 2 4 2 Builder 1 | . . 1 Tunneler 3 | 3 . . Hauler 1 | . 1 . Recycler 2 | 1 . 1 Watcher 2 | . 2 . Swarmer 3 | . 3 . Grunt 8 | . 5 3 Assembled 3 | . . 3 Best Kill Streak 4 | 2 4 3 Combat Bots Only 3 | . 3 3 Max Kills in Single Turn 2 | 1 2 1 Gunslinging 1 | . 1 . Exploded . | . . . Melee . | . . . Uniques/NPCs Destroyed . | . . . Combat | -11 -10 -10 -------- Run | Scr Mat Min Damage Taken 885 | . 358 527 Core 254 | . 81 173 Absorbed by Shields . | . . . Core Remaining (%) 100 | 100 . . Volleys Fired 84 | 10 37 37 Largest 2 | 2 2 2 Hottest 100 | 70 100 100 Shots Fired 152 | 20 67 65 Gun 136 | 20 60 56 Cannon . | . . . Launcher . | . . . Special 16 | . 7 9 Kinetic 84 | 10 30 44 Thermal 68 | 10 37 21 Explosive . | . . . Electromagnetic . | . . . Robot Hit Streak 13 | 8 13 9 Robot Miss Streak 5 | 1 5 3 Penetration Max . | . . . Secondary Targets 3 | . 1 2 Max Gunslinging Chain 1 | . 1 1 Shots Hit Robots 93 | 16 41 36 Core Hits 40 | 5 18 17 Critical Hits 1 | 1 . . Critical Kills 1 | 1 . . Critical Parts Destroyed . | . . . Melee Attacks . | . . . Impact . | . . . Slashing . | . . . Piercing . | . . . Sneak Attacks . | . . . Combat Hostiles . | . . . Follow-up Attacks . | . . . Damage Inflicted 1168 | 180 490 498 Guns 1163 | 180 485 498 Cannons . | . . . Explosions . | . . . Melee . | . . . Ramming 5 | . 5 . Kinetic 701 | 83 233 385 Thermal 462 | 97 252 113 Explosive . | . . . Electromagnetic . | . . . Impact . | . . . Slashing . | . . . Piercing . | . . . Highest Corruption . | . . . Average Corruption . | . . . Corruption Purged . | . . . Overload Shots . | . . . Overflow Damage . | . . . Projectiles . | . . . Explosions . | . . . Melee . | . . . Knockbacks . | . . . Impact . | . . . Kinetic . | . . . Secondary . | . . . Self-Inflicted Damage . | . . . Shots . | . . . Rammed 2 | . 1 1 Targets Rammed 2 | . 1 1 Kicked . | . . . Crushed . | . . . Highest Temperature 132 | 36 132 90 Average Temperature 27 | 13 28 32 Received Heat Transfer 264 | . 126 138 Siege Activations . | . . . Robots Corrupted . | . . . Combat Hostiles . | . . . Parts Fried . | . . . Impact Corruptions . | . . . Robots Melted . | . . . Combat Hostiles . | . . . Parts Melted 4 | 2 2 . Heat Transferred 1369 | 296 740 333 Parts Sabotaged . | . . . Parts Stolen . | . . . Parts Stripped . | . . . Power Chain Reactions . | . . . Missiles Intercepted . | . . . Alert | -11 -10 -10 ------- Run | Scr Mat Min Peak Influence 213 | 20 213 74 Initial 49 | . 13 49 Average 61 | 6 83 39 Maximum Alert Level 1 | . 1 . Low Security (%) 96 | 100 93 100 Level 1 3 | . 6 . Level 2 . | . . . Level 3 . | . . . Level 4 . | . . . Level 5 . | . . . High Security . | . . . Max Security . | . . . Squads Dispatched 6 | . 6 . Investigation 2 | . 2 . Extermination . | . . . Reinforcement 4 | . 4 . Assault . | . . . Garrison . | . . . Intercept . | . . . Construction Impeded . | . . . Haulers Reinforced . | . . . Stealth | -11 -10 -10 --------- Run | Scr Mat Min Distress Signals 1 | . 1 . Communications Jammed . | . . . Distress Signals . | . . . Times Spotted 31 | . 21 10 Peak Tracking Total 6 | . 6 4 Tactical Retreats 3 | . 1 2 Traps | -11 -10 -10 ------- Run | Scr Mat Min Traps Triggered 2 | . 2 . Indirectly . | . . . Trap Hack Attempts . | . . . Triggered . | . . . Disarmed . | . . . Reprogrammed . | . . . Reused . | . . . Traps Extracted . | . . . Installed . | . . . Triggered 1 | . . 1 Machines | -11 -10 -10 ---------- Run | Scr Mat Min Machines Disabled . | . . . Max in Single Turn . | . . . Machines Sabotaged . | . . . Garrisons Compromised . | . . . Overloaded Fab Kills . | . . . Fab Network Shutdowns . | . . . Hacking | -11 -10 -10 --------- Run | Scr Mat Min Machines Accessed 3 | . 3 . Terminals 3 | . 3 . Fabricators . | . . . Repair Stations . | . . . Recycling Units . | . . . Scanalyzers . | . . . Garrison Access . | . . . Total Hacks 10 | . 10 . Successful 6 | . 6 . Failed 4 | . 4 . Catastrophic . | . . . Database Lockouts . | . . . Manual 8 | . 8 . Terminals 10 | . 10 . Fabricators . | . . . Repair Stations . | . . . Recycling Units . | . . . Scanalyzers . | . . . Garrison Access . | . . . Terminal Hacks 3 | . 3 . Branch Access Points 1 | . 1 . Terminal Index 1 | . 1 . Locate Traps 1 | . 1 . Fabricator Hacks . | . . . Repair Station Hacks . | . . . Recycling Unit Hacks . | . . . Scanalyzer . | . . . Garrison Access Hacks . | . . . Unauthorized Hacks 3 | . 3 . Terminals 3 | . 3 . Botnet 3 | . 3 . Fabricators . | . . . Repair Stations . | . . . Recycling Units . | . . . Scanalyzers . | . . . Garrison Access . | . . . Data Cores Recovered . | . . . Used . | . . . Hacking Detections 3 | . 3 . Full Trace Events . | . . . Feedback Events . | . . . Feedback Blocked . | . . . Robot Schematics Acquired . | . . . Robots Built . | . . . Matter . | . . . Time . | . . . Total Robot Build Rating . | . . . Part Schematics Acquired . | . . . Parts Built . | . . . Matter . | . . . Time . | . . . Total Part Build Rating . | . . . Parts Repaired . | . . . Time . | . . . Parts Recycled . | . . . Recycled Matter . | . . . Retrieved Matter . | . . . Retrieved Components . | . . . Parts Scanalyzed . | . . . Part Schematics Acquired . | . . . Parts Damaged . | . . . Bothacking | -11 -10 -10 ------------ Run | Scr Mat Min Used RIF Installer . | . . . Robots Hacked . | . . . Non-combat . | . . . Combat . | . . . Robot Hacks Applied . | . . . Relay Couplers Released . | . . . Robots Rewired . | . . . Allies Hacked . | . . . Hacks Repelled . | . . . Allies | -11 -10 -10 -------- Run | Scr Mat Min Total Allies 3 | . . 3 Largest Group 3 | . . 3 Highest-Rated Group 40 | . . 40 Highest-Rated Ally 16 | . . 16 Total Orders . | . . . Ally Attacks 1 | . . 1 Total Damage 16 | . . 16 Kills . | . . . Allies Corrupted . | . . . Allies Melted . | . . . Intel | -11 -10 -10 ------- Run | Scr Mat Min Robot Analysis Total . | . . . Derelict Logs Recovered 1 | . . 1 Drone Launches . | . . . Drone Recoveries . | . . . Exploration | -11 -10 -10 ------------- Run | Scr Mat Min Turns Passed 1161 | 137 676 348 Spaces Moved 519 | 59 327 133 Core 1 | 1 . . Treads 518 | 58 327 133 Legs . | . . . Wheels . | . . . Hover . | . . . Flight . | . . . Fastest Speed 50 | 50 160 160 Average Speed 159 | 158 160 160 Slowest Speed 160 | 160 160 160 Overloaded Moves . | . . . Propulsion Burnouts . | . . . Robots Hopped . | . . . Cave-ins Triggered . | . . . Exploration Rate (%) 33 | 6 61 33 Regions Visited 2 Branch Regions 1 Pre-discovered Areas . | . . . Known Exits Taken 1 | . 1 . Unknown Exits Taken 1 | 1 . . Scrap Searched . | . . . Spaces Dug 8 | . 7 1 Terrain Destroyed 8 | . 7 1 Melee . | . . . Projectile 8 | . 7 1 AOE . | . . . Terrain Rammed . | . . . Walls Destroyed . | . . . Machines Disabled . | . . . Actions | -11 -10 -10 --------- Run | Scr Mat Min Total 659 | 79 395 185 Wait 17 | . 10 7 Move 517 | 58 326 133 Hop . | . . . Pick Up 11 | 3 7 1 Fast Attach 6 | 6 . . Attach 6 | 1 1 4 Detach . | . . . Swap 13 | 1 10 2 Drop 3 | . 3 . Fire 84 | 10 37 37 Melee . | . . . Ram . | . . . Kick . | . . . Crush 2 | . 1 1 Escape Stasis . | . . . Rewire . | . . . Trap . | . . . Miscellaneous . | . . . Route ------- -11/Scrapyard -10/Materials (discovered 3 exits: [*Mat x2] / *Min) -10/Mines History --------- Turn | Location | Event 38 | -11/Scrapyard | Discovered new exit (range 15) 138 | -11/Scrapyard | Entered Materials 316 | -10/Materials | Build established: Mutant 507 | -10/Materials | Discovered new exit (range 8) 533 | -10/Materials | Identified exit to Mines 640 | -10/Materials | Discovered new exit (range 16) 814 | -10/Materials | Entered Mines 826 | -10/Mines | Learned 2 Materials zone layouts 848 | -10/Mines | Assisted by bots powering up and referring to "LRC-V3" 894 | -10/Mines | Excavation squad dispatched 894 | -10/Mines | A large section of the Mines collapsed 1050 | -10/Mines | Core integrity fell below 50% 1100 | -10/Mines | Lost 4 parts (1p1n2w) 1144 | -10/Mines | Excavation squad dispatched 1155 | -10/Mines | Core integrity fell below 20% 1162 | -10/Mines | Destroyed by G-47 Trooper with Particle Gun Last Messages --------------- 00924_ Acquired 17 matter. 00967_ T-07 Excavator is excavating. 01047_ Lgt. Treads destroyed. 01053_ Med. Laser destroyed. 01054_ G-34 Mercenary destroyed. 01063_ Slammed into T-07 Excavator. 01064_ Acquired 47 matter. 01064_ Ion Engine destroyed. 01069_ Assault Rifle destroyed. 01072_ R-06 Scavenger collects Aluminum Leg. 01073_ Destroyed Sml. Laser. 01076_ R-06 Scavenger collects Ion Engine. 01077_ R-06 Scavenger destroyed. 01080_ Acquired 84 matter. 01090_ R-06 Scavenger collects Com. Wheel. 01116_ U-05 Engineer destroyed. 01124_ Acquired Terrain Scan Processor. 01144_ ALERT: Derelict activity in mines confirmed. Dispatching additional escorted excavation squad. 01149_ G-34 Mercenary destroyed. Map ----- +----------------------------------------------------+ | ???????????##### " #???#?????????????? | | ???????????#?#### ##### ###???????????????? | | ??????##????## #######?### ######????????? ??????? | | ????????????# ####???## ## "####?#??##???? ????? | | ?????######### ###??#?## # # # ######??????????? | | ???# ### #?????## ####%# ####?????????? | | ?????###### ### ##??#?####### %%#% #?#????????? | | ??????????# ## ##????# #??#####[ #?????? ???? | | ??## ###### ## #????# #??#?#### ##?? ???????? | | ??# ###### #???#?#?####???????????? | | ??#""" #### %=* #???#??#??????#????????? | | ??#""" #??######!######?????#?#??#????? ?????? | | ??#""" #????#??#=#????????????##???????#?????? | | ??#""" #?#?????# #???##??#?#????##???????????? | | ??# #???#??##*#????#?????????#???#???? ?? | | ??# #???????#=#??#??#?????????##???? ?? | | ??# #???????# ##????#??????#???? ? ?? | | ??##########??#??#?# #?#???#???#?????#?? ?? | | ????????????????#?## ##??????########## ""??? | | ?????#????#?#???#??# ######### ##! ""??? | | ???????????????????# t %* ""??? | | ??#????????#?#?#?#?###### #### | | ????????????????????#???#g#??## | | ???????????#????????????#%#???## ## ?? | | ????????#????#???#?#????#*#????## ##???? | | ??????????#?????????#??##@#?????## #####????? | | ????????????????????????# ###????# ##????????? | | ????????????????#???????# #??????# ##?????????? | | ???????????????#????????# ?????? #??????????? | | ????????????????????????# #?????? #?????????? | | ???????????????????#????# #??#??? ?????????? | | ????????????????????????# #?????? ????????? | | ???????????? ????#?????? #?????# ???????? | | ?????????????? ??????#??####?????# ????????? | | ??????????????????????????????????# ????????? | | ?????????????????????????????#?????# ??????????? | | ?????????????????????????????????#?? ????????????? | | ??????????????????????#??????????????????????????? | | ???????????????????????#?????????#???????????????? | | ?????????????????????????????????????????????????? | | ?????????????????????????????????????????????????? | | ?????????????????????????????????????????????????? | | ?????????????????????????????????????????????????? | | ?????????????????????????????????????????????????? | | ?????????????????????????????????????????????????? | | ?????????????????????????????????????????????????? | | ?????????????????????????????????????????????????? | | ?????????????????????????????????????????????????? | | ?????????????????????????????????????????????????? | | ?????????????????????????????????????????????????? | +----------------------------------------------------+ Best States ------------- Heat Dissipation 25 Energy Generation 10 Energy Capacity 250 Matter Stores 300 Matter Capacity 300 Sight Range 16 Terrain Scan Range 16 Terrain Scan Density 10 Evasion (%) 40 Recoil Reduction 2 Item Schematics ----------------- None Robot Schematics ------------------ None Fabricated ------------ Nothing Alien Tech Used ----------------- None Achievements -------------- None Challenges ------------ None Game ------ Seed AutogunDynamicChip Manual? 0 Play Time 00:12:33 Cumulative 294.7 hours Start 2021.09.22 @ 01:37:12 End 2021.09.22 @ 01:47:01 Sessions 1 Manual Loads 0 Difficulty Rogue Special Mode None Game No. 126 Rogue 22 Adventurer 102 Explorer 2 Win Type - Total 20 Types 17/2/0/0/0/0/0/0/1 Lore% 49 Gallery% 77 Achievement% 53 Wizard Run 0 Options --------- ASCII 0 Keyboard 1 Movement Numpad Keybinds 0 Fullscreen 1 Font 36/TerminusFine Map View 76x50 Tactical HUD 1 Map Filters NONE Filters NONE Steam 1 RUN: 44be7681-0fb1-4b18-9d38-84fbd8080066